bitfinex/quotes_SOLUSD_20250226
["timestamp","ask_amount","ask_price","bid_price","bid_amount"]
[1740613159152,82.9,135.38,135.35,0.0001]
[1740613159461,1.93973182,135.37,135.35,0.0001]
[1740613159670,84.83970113,135.38,135.35,0.0001]
[1740613160665,0.7387,135.37,135.35,0.0001]
[1740613161243,82.9,135.38,135.35,0.0001]
[1740613161244,83.6386,135.38,135.35,0.0001]
[1740613163069,85.4852,135.38,135.35,0.0001]
[1740613164661,82.9,135.37,135.35,0.0001]
[1740613164864,0.7387,135.36,135.35,0.0001]
[1740613165166,83.6387,135.36,135.35,0.0001]
[1740613165546,0.88086157,135.36,135.35,0.0001]
[1740613165755,11.90103911,135.36,135.35,0.0001]
[1740613165953,30.55068797,135.36,135.35,0.0001]
[1740613167968,10.90103911,135.36,135.35,0.0001]
[1740613168266,7.8187,135.36,135.27,18.64964886]
[1740613168470,0.7387,135.36,135.27,101.04964886]
[1740613168672,0.7387,135.36,135.27,108.12964886]
[1740613168853,8.9266,135.38,135.27,108.12964886]
[1740613169058,0.7387,135.37,135.29,18.64964886]
[1740613170067,82.9,135.36,135.29,18.64964886]
[1740613170865,82.9,135.35,135.29,18.64964886]
[1740613171372,0.7388,135.34,135.29,18.64964886]
[1740613172960,0.7388,135.34,135.29,26.04114886]
[1740613173161,82.9,135.35,135.29,108.44114886]
[1740613173552,7.08,135.4,135.32,1.6503]
[1740613173553,82.9,135.38,135.32,1.6503]
[1740613173855,0.7385,135.4,135.33,18.64964886]
[1740613174060,0.7385,135.4,135.33,25.72964886]
[1740613175374,2.72676157,135.41,135.33,25.72964886]
[1740613175566,85.62676157,135.41,135.33,25.72964886]
[1740613175764,85.4846,135.41,135.33,33.11874886]
[1740613176376,83.6384,135.41,135.33,33.11874886]
[1740613176556,0.7384,135.41,135.33,252.31874886]
[1740613177361,0.063,135.42,135.33,252.31874886]
[1740613177777,0.063,135.42,135.35,18.64964886]
[1740613178981,0.063,135.42,135.36,7.3877]
[1740613179175,0.063,135.42,135.36,82.4]
[1740613179570,0.063,135.42,135.37,18.64964886]
[1740613181153,0.063,135.42,135.37,26.03674886]
[1740613181359,0.063,135.42,135.39,18.64964886]
[1740613182377,0.063,135.42,135.38,90.2711]
[1740613182880,0.063,135.42,135.39,18.64964886]
[1740613183966,0.063,135.42,135.38,90.2711]
[1740613185178,0.063,135.42,135.38,83.936]
[1740613185578,82.963,135.42,135.38,1.536]
[1740613186270,82.963,135.42,135.34,8.1967]
[1740613186479,0.7385,135.4,135.34,8.1967]
[1740613188664,0.8015,135.4,135.34,8.1967]
[1740613188866,0.14216157,135.39,135.31,90.3675]
[1740613189066,82.9,135.38,135.31,7.9675]
[1740613189766,82.9,135.37,135.31,1.5836]
[1740613190087,82.9,135.37,135.29,82.4]
[1740613190783,84.83979635,135.37,135.29,82.4]
[1740613190989,2.5856,135.36,135.29,82.4]
[1740613191187,82.9,135.35,135.29,18.64964886]
[1740613192988,82.9,135.35,135.28,90.3975]
[1740613193371,82.9,135.34,135.28,84.0136]
[1740613196587,82.9,135.34,135.29,18.64964886]
[1740613196801,82.9,135.39,135.29,238.84964886]
[1740613196971,82.9,135.39,135.31,18.64964886]
[1740613197170,82.9,135.39,135.3,7.06]
[1740613197479,0.14216157,135.38,135.3,7.06]
[1740613198398,84.83966889,135.37,135.29,18.64964886]
[1740613199388,82.9,135.37,135.3,18.64964886]
[1740613199586,82.9,135.37,135.29,18.64964886]
[1740613200667,82.9,135.37,135.29,26.04104886]
[1740613201285,3.00285362,135.4,135.3,0.56864628]
[1740613201286,82.963,135.4,135.3,0.56864628]
[1740613201487,82.9,135.39,135.3,7.06]
[1740613201680,1.93972783,135.38,135.3,7.06]
[1740613202074,82.9,135.37,135.3,0.03]
[1740613202274,7.06,135.36,135.3,0.03]
[1740613202578,82.9,135.35,135.3,0.03]
[1740613204295,89.3277,135.35,135.3,0.03]
[1740613204490,1.94030824,135.34,135.3,0.03]
[1740613205077,0.14216157,135.33,135.3,0.03]
[1740613205279,82.9,135.32,135.3,0.03]
[1740613209597,82.9,135.36,135.3,0.03]
[1740613209804,0.14216157,135.35,135.3,0.03]
[1740613209980,82.9,135.34,135.3,0.03]
[1740613215201,82.9,135.33,135.3,0.03]
[1740613215396,84.90280458,135.37,135.3,82.43]
[1740613215581,0.063,135.37,135.32,18.64964886]
[1740613215786,0.063,135.37,135.35,0.56864628]
[1740613215985,0.063,135.37,135.36,18.64964886]
[1740613216197,0.063,135.37,135.36,20.28034886]
[1740613216993,0.063,135.37,135.36,27.66804886]
[1740613217198,0.063,135.37,135.36,110.63669514]
[1740613217384,0.063,135.37,135.36,110.06804886]
[1740613218102,0.063,135.37,135.36,111.63669514]
[1740613218696,0.063,135.4,135.38,19.21829514]
[1740613218893,0.063,135.4,135.38,238.41829514]
[1740613219811,0.063,135.4,135.39,26.03564886]
[1740613223411,0.063,135.4,135.39,109.00429514]
[1740613223995,0.063,135.4,135.39,248.25917937]
[1740613224195,0.063,135.4,135.39,246.80429514]
[1740613224715,0.063,135.4,135.39,247.80429514]
[1740613225410,0.063,135.4,135.39,246.80429514]
[1740613225904,0.063,135.4,135.39,245.80429514]
[1740613227024,0.063,135.4,135.39,26.60429514]
[1740613230322,0.063,135.4,135.39,26.03564886]
[1740613230620,0.063,135.4,135.39,18.64964886]
[1740613232132,0.063,135.4,135.38,7.3865]
[1740613233504,0.063,135.4,135.39,27.60429514]
[1740613233831,0.063,135.4,135.39,26.60429514]
[1740613234119,0.063,135.4,135.39,26.03564886]
[1740613234427,0.063,135.4,135.39,7.386]
[1740613234620,0.063,135.4,135.38,18.64964886]
[1740613234824,0.063,135.4,135.38,26.03624886]
[1740613236324,0.063,135.4,135.39,10.40991859]
[1740613236525,0.063,135.4,135.39,7.386]
[1740613237331,0.063,135.4,135.39,7.95464628]
[1740613237510,0.063,135.4,135.39,10.40968699]
[1740613238233,0.063,135.4,135.39,9.40968699]
[1740613238414,0.063,135.4,135.39,10.40968699]
[1740613238731,0.063,135.4,135.39,28.05933585]
[1740613239533,0.063,135.4,135.39,29.05933585]
[1740613239713,0.0001,135.4,135.39,30.05933585]
[1740613240716,0.0001,135.42,135.41,4.10644628]
[1740613241040,0.0001,135.42,135.41,24.21022075]
[1740613241207,0.0001,135.42,135.41,106.61022075]
[1740613242309,0.0001,135.42,135.41,113.99512075]
[1740613251348,0.0001,135.42,135.41,31.59512075]
[1740613251542,0.0001,135.42,135.41,36.63512075]
[1740613251752,0.0001,135.42,135.4,7.3853]
[1740613251953,0.0001,135.42,135.39,7.3858]
[1740613252647,0.0001,135.42,135.41,0.03]
[1740613253445,0.0001,135.42,135.41,26.06454886]
[1740613253646,0.0001,135.42,135.41,26.63319514]
[1740613254147,0.0001,135.42,135.41,28.63319514]
[1740613255723,0.0001,135.42,135.41,27.63319514]
[1740613255929,0.0001,135.42,135.41,28.63319514]
[1740613262063,0.0001,135.42,135.41,27.348872]
[1740613262255,0.0001,135.42,135.41,26.06454886]
[1740613262438,0.0001,135.42,135.41,28.06454886]
[1740613262758,0.0001,135.42,135.41,26.20671043]
[1740613262955,0.0001,135.42,135.41,26.06454886]
[1740613263270,0.0001,135.42,135.41,0.03]
[1740613264150,82.9001,135.42,135.41,0.03]
[1740613274573,0.0001,135.42,135.41,0.03]
[1740613290862,0.0001,135.42,135.41,18.67964886]
[1740613291065,0.0001,135.42,135.41,0.03]
[1740613295496,0.0001,135.42,135.41,18.67964886]
[1740613297969,0.0001,135.42,135.41,0.03]
[1740613308788,1.5736,135.42,135.41,0.03]
[1740613311395,1.85792314,135.42,135.41,0.03]
[1740613312094,1.5736,135.42,135.41,0.03]
[1740613316092,0.0001,135.42,135.41,0.03]
[1740613346120,1.93914628,135.42,135.37,0.03]
[1740613346704,0.0001,135.42,135.37,0.03]
[1740613347926,0.14226157,135.42,135.37,0.03]
[1740613348123,0.14226157,135.42,135.41,0.03]
[1740613348309,0.14226157,135.42,135.37,0.03]
[1740613348509,1.93930161,135.41,135.37,0.03]
[1740613348726,6.3808,135.4,135.37,0.03]
[1740613349524,8.32027263,135.4,135.37,0.03]
[1740613350225,6.3808,135.4,135.37,0.03]
[1740613351019,82.9,135.39,135.37,0.03]
[1740613351218,0.0001,135.42,135.37,0.03]
[1740613351219,82.9,135.38,135.37,0.03]
[1740613353514,0.0001,135.42,135.37,0.03]
[1740613353714,82.9,135.41,135.37,0.03]
[1740613356342,82.9,135.4,135.37,0.03]
[1740613360646,82.9,135.39,135.37,0.03]
[1740613361815,82.9,135.41,135.38,18.64964886]
[1740613364453,0.0001,135.42,135.39,0.42648471]
[1740613369545,82.9001,135.42,135.38,18.64964886]
[1740613369738,82.9001,135.42,135.39,0.42648471]
[1740613371242,82.9001,135.42,135.39,7.81248471]
[1740613371441,82.9001,135.42,135.41,18.64964886]
[1740613371651,0.0001,135.42,135.41,18.64964886]
[1740613373454,0.0001,135.42,135.4,7.02]
[1740613373658,82.9,135.41,135.38,0.03]
[1740613373976,82.9,135.4,135.38,0.03]
[1740613374362,84.83937473,135.39,135.38,0.03]
[1740613374547,1.93937473,135.39,135.38,0.03]
[1740613374747,1.93951979,135.41,135.38,0.03]
[1740613375362,0.14216157,135.4,135.38,0.0001]
[1740613375567,1.93950899,135.39,135.38,0.0001]
[1740613376580,7.9539,135.42,135.38,0.0001]
[1740613377252,1.93886902,135.41,135.38,0.0001]
[1740613377755,9.8931702,135.42,135.38,0.0001]
[1740613382393,82.9,135.41,135.38,0.0001]
[1740613382579,1.93961,135.4,135.38,0.0001]
[1740613382779,82.9,135.41,135.38,0.0001]
[1740613382964,82.9,135.4,135.38,0.0001]
[1740613383864,82.9,135.39,135.38,0.0001]
[1740613384064,9.89295151,135.42,135.38,0.0001]
[1740613384861,7.9539,135.42,135.38,0.0001]
[1740613386300,0.0001,135.42,135.38,0.0001]
[1740613388191,82.9,135.41,135.38,0.0001]
[1740613389724,82.9,135.41,135.39,18.64964886]
[1740613390009,0.0001,135.42,135.4,0.42648471]
[1740613390217,0.0001,135.42,135.41,20.28694886]
[1740613390416,0.0001,135.42,135.41,1.6373]
[1740613390610,0.0001,135.42,135.38,6.0198]
[1740613390803,82.9,135.41,135.39,18.64964886]
[1740613391718,82.9,135.41,135.38,6.0198]
[1740613391892,0.0001,135.42,135.38,6.0198]
[1740613391893,82.9,135.4,135.38,0.0001]
[1740613396318,82.9,135.39,135.38,0.0001]
[1740613396514,0.0001,135.42,135.38,0.0001]
[1740613396815,82.9,135.41,135.38,0.0001]
[1740613399299,82.9,135.4,135.38,0.0001]
[1740613399593,82.9,135.4,135.38,20.18174886]
[1740613399800,0.0001,135.42,135.38,20.18174886]
[1740613399999,0.0001,135.42,135.39,7.02]
[1740613400623,82.9,135.41,135.38,1.5321]
[1740613401627,82.9,135.41,135.38,0.0001]
[1740613402015,82.9,135.4,135.38,0.0001]
[1740613402410,82.9,135.39,135.38,0.0001]
[1740613402623,0.0001,135.42,135.38,0.0001]
[1740613417235,82.9,135.41,135.38,0.0001]
[1740613417633,82.9,135.4,135.38,0.0001]
[1740613418729,82.9,135.41,135.38,18.64974886]
[1740613422111,82.9,135.41,135.39,1.5072]
[1740613424528,82.9,135.4,135.38,0.0001]
[1740613426143,82.9,135.39,135.38,0.0001]
[1740613426315,8.03356858,135.42,135.38,0.0001]
[1740613428532,19.4883017,135.42,135.38,0.0001]
[1740613429017,18.79181043,135.39,135.37,0.0001]
[1740613429234,30.32877663,135.38,135.35,0.0001]
[1740613429441,0.14216157,135.36,135.35,0.0001]
[1740613429617,2.08239356,135.36,135.35,0.0001]
[1740613430234,20.73204242,135.36,135.35,0.0001]
[1740613430436,57.21682067,135.36,135.35,0.0001]
[1740613432749,38.42501024,135.36,135.35,0.0001]
[1740613433424,57.0746591,135.36,135.35,0.0001]
[1740613434124,58.0746591,135.36,135.35,0.0001]
[1740613436042,57.0746591,135.36,135.35,0.0001]
[1740613437448,58.0746591,135.36,135.35,0.0001]
[1740613437621,58.21682067,135.36,135.35,0.0001]
[1740613440046,57.21682067,135.36,135.35,0.0001]
[1740613440246,21.73204242,135.36,135.35,0.0001]
[1740613440423,21.73204242,135.36,135.3,0.03]
[1740613440424,0.14216157,135.32,135.3,0.03]
[1740613440630,8.94078112,135.32,135.3,0.03]
[1740613441326,0.28432314,135.31,135.3,0.03]
[1740613442348,0.42648471,135.31,135.3,0.03]
[1740613442849,29.08573357,135.31,135.3,0.0001]
[1740613443046,20.07613357,135.29,135.28,0.0001]
[1740613443250,21.01758865,135.29,135.28,0.0001]
[1740613443550,2.22577822,135.29,135.28,0.0001]
[1740613443747,1.94094124,135.3,135.28,0.0001]
[1740613447248,0.28432314,135.29,135.28,0.0001]
[1740613448848,1.94094124,135.3,135.28,0.0001]
[1740613452754,82.9,135.29,135.28,0.0001]
[1740613453975,0.28432314,135.29,135.28,0.0001]
[1740613455068,137.48432314,135.28,135.27,0.0001]
[1740613455239,158.21749531,135.28,135.27,0.0001]
[1740613455441,156.27613357,135.28,135.27,0.0001]
[1740613456177,158.91463357,135.28,135.27,0.0001]
[1740613458846,21.71463357,135.28,135.27,0.0001]
[1740613459047,59.90027561,135.28,135.27,0.0001]
[1740613459872,55.36572012,135.27,135.24,0.0001]
[1740613460059,0.28432314,135.25,135.24,0.0001]
[1740613461343,18.933972,135.25,135.21,0.0001]
[1740613461545,1.94183922,135.24,135.18,1.2023348]
[1740613461744,0.28432314,135.24,135.18,1.2023348]
[1740613463067,82.9,135.23,135.19,13.0385]
[1740613463271,82.9,135.23,135.2,1.5248]
[1740613463644,82.9,135.22,135.2,1.5248]
[1740613463846,82.9,135.27,135.21,18.64964886]
[1740613464069,82.9,135.26,135.21,19.64964886]
[1740613465962,82.9,135.25,135.23,18.64964886]
[1740613466168,82.9,135.25,135.23,25.64964886]
[1740613467466,82.9,135.25,135.24,8.1463]
[1740613468671,82.9,135.3,135.24,8.1463]
[1740613468850,82.9,135.29,135.24,26.79594886]
[1740613469970,82.9,135.29,135.24,8.1463]
[1740613470175,82.9,135.29,135.24,1.5299]
[1740613470576,82.9,135.29,135.24,1.5599]
[1740613473554,82.9,135.28,135.24,1.5599]
[1740613473970,82.9,135.27,135.24,1.5599]
[1740613474265,82.9,135.26,135.24,1.5599]
[1740613484461,82.9,135.25,135.24,1.5599]
[1740613484675,0.063,135.29,135.24,1.5599]
[1740613488061,0.063,135.29,135.24,0.03]
[1740613488471,82.9,135.28,135.24,0.03]
[1740613489684,82.9,135.27,135.24,0.03]
[1740613494370,82.9,135.26,135.24,0.03]
[1740613500470,82.9,135.25,135.24,0.03]
[1740613500988,2.00392162,135.29,135.24,0.03]
[1740613501165,0.063,135.29,135.28,20.21829514]
[1740613501495,0.063,135.29,135.28,31.18731684]
[1740613501786,0.063,135.29,135.28,30.18731684]
[1740613501990,0.063,135.29,135.28,31.18731684]
[1740613502176,0.063,135.29,135.28,8.5104]
[1740613502674,0.063,135.29,135.28,11.07904628]
[1740613502881,0.063,135.3,135.29,21.21829514]
[1740613503078,11.45473312,135.33,135.32,20.21829514]
[1740613503477,82.9,135.37,135.34,18.64964886]
[1740613504089,94.35473312,135.39,135.35,0.42648471]
[1740613504299,11.45473312,135.39,135.38,0.42648471]
[1740613504678,11.45473312,135.39,135.38,7.0]
[1740613504985,11.45473312,135.39,135.38,7.42648471]
[1740613505185,11.45473312,135.39,135.38,26.21829514]
[1740613505386,11.45473312,135.39,135.38,27.21829514]
[1740613505600,11.45473312,135.39,135.38,28.21829514]
[1740613505981,45.1651563,135.41,135.38,7.0]
[1740613505982,82.9,135.41,135.38,7.0]
[1740613506182,0.063,135.43,135.36,1.5167]
[1740613506183,82.9,135.4,135.36,1.5167]
[1740613506404,82.9,135.4,135.37,0.14216157]
[1740613506710,82.9,135.4,135.37,18.933972]
[1740613506882,82.9,135.39,135.36,2.5167]
[1740613507087,82.9,135.38,135.36,1.5167]
[1740613507292,82.9,135.41,135.36,1.5167]
[1740613507602,84.83902719,135.4,135.32,1.609]
[1740613507783,82.9,135.39,135.31,1.0]
[1740613507984,82.9,135.39,135.3,8.0]
[1740613508175,82.9,135.39,135.3,7.0]
[1740613508578,84.839663,135.38,135.29,7.7253]
[1740613508777,0.14216157,135.36,135.28,0.03]
[1740613508981,0.14216157,135.34,135.28,0.03]
[1740613509196,82.9,135.33,135.28,0.03]
[1740613509698,82.9,135.32,135.28,0.03]
[1740613509999,82.9,135.32,135.28,19.67964886]
[1740613510386,82.9,135.32,135.29,0.42648471]
[1740613510590,82.9,135.32,135.28,0.03]
[1740613510790,82.9,135.32,135.29,0.42648471]
[1740613510995,82.9,135.32,135.3,18.64964886]
[1740613511605,82.9,135.32,135.3,19.64964886]
[1740613511805,6.3355,135.38,135.3,19.64964886]
[1740613511806,82.9,135.37,135.31,1.42648471]
[1740613512004,82.9,135.36,135.32,19.64964886]
[1740613513096,82.9,135.36,135.31,7.0]
[1740613513406,82.9,135.36,135.3,1.0]
[1740613514091,82.9,135.36,135.29,18.64964886]
[1740613514290,82.9,135.35,135.29,18.64964886]
[1740613514496,82.9,135.35,135.3,1.0]
[1740613514697,82.9,135.35,135.29,18.64964886]
[1740613515304,82.9,135.34,135.28,7.03]
[1740613515495,19.64964886,135.38,135.28,0.03]
[1740613515496,82.9,135.33,135.28,0.03]
[1740613515698,82.9,135.32,135.28,0.03]
[1740613515903,82.9,135.31,135.28,0.03]
[1740613516787,82.9,135.31,135.28,0.31432314]
[1740613517105,82.9,135.31,135.28,0.03]
[1740613518793,82.9,135.31,135.28,0.31432314]
[1740613520008,82.9,135.34,135.29,20.21829514]
[1740613520219,82.9,135.34,135.29,27.21829514]
[1740613521290,0.063,135.31,135.29,27.21829514]
[1740613523609,0.063,135.31,135.28,0.03]
[1740613524003,82.9,135.3,135.28,0.03]
[1740613524209,82.9,135.3,135.24,124.61]
[1740613524518,82.9,135.29,135.24,0.03]
[1740613524895,82.9,135.28,135.24,0.03]
[1740613525708,82.9,135.27,135.24,0.03]
[1740613525912,82.9,135.26,135.24,0.03]
[1740613527016,82.9,135.25,135.24,0.03]
[1740613527410,3.45649209,135.29,135.24,0.03]
[1740613527608,0.14216157,135.27,135.18,2.2323348]
[1740613527813,82.9,135.24,135.18,19.88198366]
[1740613528005,82.9,135.23,135.18,19.88198366]
[1740613528733,82.9,135.23,135.18,20.88198366]
[1740613529723,82.9,135.23,135.18,19.88198366]
[1740613529920,82.9,135.23,135.18,1.2323348]
[1740613530127,82.9,135.22,135.18,1.2323348]
[1740613531117,82.9,135.21,135.18,1.2323348]
[1740613531315,82.9,135.2,135.18,1.2323348]
[1740613532412,82.9,135.2,135.14,1.03]
[1740613532607,82.9,135.19,135.14,1.03]
[1740613533008,27.59146894,135.25,135.14,1.03]
[1740613533009,82.9,135.18,135.14,1.03]
[1740613533623,82.9,135.17,135.14,0.03]
[1740613533823,82.9,135.16,135.14,0.03]
[1740613534231,82.9,135.22,135.15,0.14216157]
[1740613534424,82.9,135.21,135.15,2.87032597]
[1740613534627,82.9,135.2,135.15,2.87032597]
[1740613534820,82.9,135.2,135.17,0.14216157]
[1740613535832,82.9,135.2,135.17,0.56864628]
[1740613536338,82.9,135.2,135.16,0.14216157]
[1740613536630,8.94141897,135.25,135.15,2.7281644]
[1740613536631,82.9,135.19,135.15,2.7281644]
[1740613536829,82.9,135.18,135.15,2.7281644]
[1740613537012,82.9,135.17,135.15,2.7281644]
[1740613539727,82.9,135.17,135.14,0.03]
[1740613540236,82.9,135.16,135.14,0.03]
[1740613540812,82.9,135.16,135.13,0.03]
[1740613544133,82.9,135.15,135.13,0.03]
[1740613544327,82.9,135.15,135.07,7.9892]
[1740613544328,82.9,135.14,135.07,2.5788]
[1740613544528,82.9,135.13,135.08,1.0]
[1740613544842,82.9,135.13,135.08,1.14216157]
[1740613545037,82.9,135.13,135.08,0.14216157]
[1740613545339,82.9,135.13,135.08,1.0]
[1740613546345,82.9,135.13,135.09,19.79181043]
[1740613546539,82.9,135.13,135.11,18.79181043]
[1740613546836,82.9,135.18,135.15,18.79181043]
[1740613548045,82.9,135.18,135.14,0.14216157]
[1740613548446,82.9,135.18,135.14,18.79181043]
[1740613550358,0.063,135.2,135.18,0.14216157]
[1740613550645,0.063,135.2,135.19,27.61249514]
[1740613550846,82.9,135.28,135.26,0.28432314]
[1740613551161,82.9,135.28,135.25,18.64964886]
[1740613553254,82.9,135.3,135.26,0.28432314]
[1740613555457,82.9,135.3,135.26,1.28432314]
[1740613555760,82.9,135.3,135.26,0.28432314]
[1740613557065,82.9,135.29,135.21,2.0]
[1740613557257,82.9,135.28,135.22,7.0]
[1740613557567,82.9,135.28,135.22,26.21829514]
[1740613557943,82.9,135.27,135.21,7.0]
[1740613558270,82.9,135.27,135.2,1.5672]
[1740613558858,82.9,135.27,135.2,10.9633]
[1740613559165,82.9,135.27,135.21,20.21829514]
[1740613559367,82.9,135.27,135.21,19.933972]
[1740613559667,82.9,135.26,135.2,2.5672]
[1740613559862,82.9,135.25,135.2,1.5672]
[1740613560264,82.9,135.25,135.2,18.79181043]
[1740613560658,82.9,135.25,135.22,0.14216157]
[1740613560859,82.9,135.29,135.25,18.933972]
[1740613561553,0.063,135.31,135.29,0.28432314]
[1740613561873,0.063,135.31,135.29,25.913972]
[1740613562178,0.063,135.31,135.29,6.98]
[1740613562565,0.063,135.31,135.26,18.933972]
[1740613562862,82.9,135.3,135.27,6.98]
[1740613563372,82.9,135.3,135.24,18.933972]
[1740613565466,82.9,135.3,135.24,0.14216157]
[1740613565776,82.9,135.29,135.24,18.933972]
[1740613565971,82.9,135.29,135.23,6.98]
[1740613566176,82.9,135.28,135.23,6.98]
[1740613567260,82.9,135.27,135.19,132.2578]
[1740613567564,82.9,135.26,135.19,124.73]
[1740613568776,82.9,135.26,135.2,18.79181043]
[1740613569075,82.9,135.26,135.22,0.14216157]
[1740613569577,82.9,135.26,135.23,6.98]
[1740613570755,1.5927,135.29,135.24,18.933972]
[1740613570756,82.9,135.28,135.24,18.933972]
[1740613571675,89.576,135.31,135.25,0.28432314]
[1740613571863,82.963,135.31,135.25,0.28432314]
[1740613573992,0.063,135.31,135.3,0.28432314]
[1740613574184,0.063,135.31,135.3,19.21829514]
[1740613575380,0.063,135.31,135.29,6.98]
[1740613575961,0.063,135.31,135.3,18.933972]
[1740613576775,0.063,135.31,135.3,19.21829514]
[1740613577983,0.063,135.31,135.3,18.933972]
[1740613579086,0.063,135.31,135.29,6.98]
[1740613579778,0.063,135.31,135.27,18.64964886]
[1740613579987,0.063,135.31,135.28,6.98]
[1740613580665,0.063,135.31,135.29,0.28432314]
[1740613583463,0.063,135.31,135.3,0.28432314]
[1740613583877,0.063,135.31,135.3,19.21829514]
[1740613585988,0.063,135.31,135.3,26.60919514]
[1740613586168,0.063,135.31,135.3,19.21829514]
[1740613589475,0.063,135.31,135.3,26.60919514]
[1740613589682,0.063,135.31,135.3,27.60919514]
[1740613589888,0.063,135.31,135.3,28.60919514]
[1740613592787,0.063,135.31,135.3,30.06649781]
[1740613593194,0.063,135.31,135.3,20.21829514]
[1740613593700,0.063,135.31,135.3,30.06662985]
[1740613595198,0.063,135.31,135.3,28.60919514]
[1740613596899,0.063,135.31,135.3,30.06645178]
[1740613597882,0.063,135.31,135.3,249.26645178]
[1740613598084,1.7189,135.4,135.38,0.42648471]
[1740613598085,0.063,135.4,135.38,0.42648471]
[1740613598400,0.063,135.4,135.39,7.40648471]
[1740613598900,0.063,135.4,135.39,26.19829514]
[1740613599202,0.063,135.4,135.39,27.19829514]
[1740613599392,0.063,135.4,135.39,112.053149]
[1740613600908,0.063,135.4,135.39,29.653149]
[1740613601087,0.063,135.4,135.39,27.653149]
[1740613601286,0.063,135.4,135.39,26.19829514]
[1740613602205,0.063,135.4,135.39,6.98]
[1740613602588,0.063,135.4,135.39,26.19829514]
[1740613604893,0.063,135.4,135.39,28.19829514]
[1740613605093,0.063,135.4,135.39,29.65328747]
[1740613607033,0.0001,135.42,135.41,21.21829514]
[1740613607235,0.0001,135.42,135.41,243.22194798]
[1740613607523,0.0001,135.42,135.41,241.76869129]
[1740613613741,0.0001,135.42,135.41,249.15359129]
[1740613616156,0.0001,135.42,135.41,112.35359129]
[1740613616455,0.0001,135.42,135.41,113.80748412]
[1740613616649,0.0001,135.42,135.41,21.73826098]
[1740613616852,0.0001,135.42,135.41,18.64964886]
[1740613617059,0.0001,135.42,135.41,18.79181043]
[1740613617426,0.0001,135.42,135.4,6.99]
[1740613619257,0.0001,135.42,135.41,19.21829514]
[1740613620671,0.0001,135.42,135.41,18.79181043]
[1740613621563,0.0001,135.42,135.4,6.99]
[1740613622540,82.9001,135.42,135.4,6.99]
[1740613622744,82.9001,135.42,135.4,0.03]
[1740613624262,82.9,135.41,135.4,0.03]
[1740613625545,6.6399,135.41,135.32,1.0]
[1740613625851,82.9,135.4,135.36,0.14216157]
[1740613626447,82.9,135.4,135.35,18.64964886]
[1740613627968,82.9,135.4,135.36,0.14216157]
[1740613628468,82.9,135.4,135.36,0.56864628]
[1740613628679,6.6399,135.41,135.36,1.56864628]
[1740613628851,82.9001,135.42,135.36,7.95614628]
[1740613629281,82.9001,135.42,135.36,0.56864628]
[1740613631593,82.9001,135.42,135.36,9.95614628]
[1740613633268,82.9001,135.42,135.39,0.14216157]
[1740613633584,82.9001,135.42,135.39,6.96]
[1740613633882,82.9,135.41,135.32,1.0]
[1740613634070,82.9,135.4,135.32,1.0]
[1740613634275,82.9,135.4,135.34,18.79181043]
[1740613634469,82.9,135.4,135.33,6.96]
[1740613635285,1.5166,135.38,135.3,124.48]
[1740613635469,82.9,135.37,135.31,6.96]